fUST/lending_fUST_20250911
["ID","MTS","AMOUNT","RATE_DAILY","PERIOD"]
[384853967,1757593852099,-160.0,0.00024,7]
[384853968,1757593852110,-250.0,0.00024,10]
[384853969,1757593852128,-500.0,0.00024,9]
[384853970,1757593852149,-233.10680167,0.00024,7]
[384853971,1757593852164,-200.0,0.00024,7]
[384853972,1757593852176,-417.15472785,0.00024,3]
[384853973,1757593852197,-417.15472785,0.00024,3]
[384853974,1757593852208,-260.25615741,0.00024067,2]
[384853975,1757593852218,-5091.38256657,0.00024074,2]
[384853976,1757593852229,-2000.0,0.000241,2]
[384853977,1757593852239,-250.0,0.000241,10]
[384853978,1757593852249,-202.0,0.0002412,9]
[384853979,1757593852259,-513.29575865,0.00024164,2]
[384853980,1757593852273,-7130.01969476,0.00024174,2]
[384853981,1757593852290,-250.0,0.000242,10]
[384853982,1757593852300,-260.25615741,0.00024233,2]
[384853983,1757593852310,-300.0,0.0002424,2]
[384853984,1757593852320,-600.0,0.0002425,7]
[384853985,1757593852330,-600.0,0.0002425,7]
[384853986,1757593852340,-1097.35828523,0.0002425,7]
[384853987,1757593852351,-600.0,0.0002425,7]
[384853988,1757593852362,-250.0,0.000243,10]
[384853989,1757593852373,-188.4352839,0.00024356,2]
[384853990,1757593852383,-188.4352839,0.00024356,2]
[384853991,1757593852393,-188.4352839,0.00024356,2]
[384853992,1757593852403,-376.1172902,0.00024356,2]
[384853993,1757593852417,-188.4352839,0.00024356,2]
[384853994,1757593852429,-188.4352839,0.00024356,2]
[384853995,1757593852439,-188.4352839,0.00024356,2]
[384853996,1757593852450,-188.4352839,0.00024356,2]
[384853997,1757593852460,-188.4352839,0.00024356,2]
[384853998,1757593852471,-625.63671957,0.00024378,2]
[384853999,1757593852482,-8453.76,0.000244,7]
[384854000,1757593852493,-250.0,0.000244,10]
[384854001,1757593852503,-260.25615741,0.000244,2]
[384854002,1757593852514,-409.0,0.00024471,2]
[384854003,1757593852525,-936.66,0.00024489,2]
[384854004,1757593852535,-661.98079598,0.000245,2]
[384854005,1757593852545,-19338.12,0.000245,7]
[384854006,1757593852556,-6526.55470243,0.000245,30]
[384854007,1757593852566,-250.0,0.000245,10]
[384854008,1757593852577,-260.25615741,0.00024567,2]
[384854009,1757593852587,-250.0,0.000246,10]
[384854010,1757593852598,-7130.01969476,0.00024602,2]
[384854011,1757593852607,-506.00732599,0.0002465,2]
[384854012,1757593852617,-376086.02289043,0.0002465,2]
[384854013,1757593852627,-500.0,0.00024657,2]
[384854014,1757593852637,-398.9,0.00024657,2]
[384854015,1757593852647,-600.0,0.00024657,2]
[384854016,1757593852657,-600.0,0.00024657,2]
[384854017,1757593852673,-600.0,0.00024657,2]
[384854018,1757593852683,-320.36996603,0.00024657,2]
[384854019,1757593852692,-200.0,0.00024658,15]
[384854020,1757593852702,-252.75275,0.00024658,7]
[384854021,1757593852712,-252.75275,0.00024658,7]
[384854022,1757593852721,-252.75275,0.00024658,7]
[384854023,1757593852731,-252.75275,0.00024658,7]
[384854024,1757593852740,-252.75275,0.00024658,7]
[384854025,1757593852750,-252.75275,0.00024658,7]
[384854026,1757593852759,-252.75275,0.00024658,7]
[384854027,1757593852768,-252.75275,0.00024658,7]
[384854028,1757593852778,-252.75275,0.00024658,7]
[384854029,1757593852787,-252.75275,0.00024658,7]
[384854030,1757593852796,-252.75275,0.00024658,7]
[384854031,1757593852805,-252.75275,0.00024658,7]
[384854032,1757593852814,-252.75275,0.00024658,7]
[384854033,1757593852824,-252.75275,0.00024658,7]
[384854034,1757593852837,-252.75275,0.00024658,7]
[384854035,1757593852847,-252.75275,0.00024658,7]
[384854036,1757593852858,-252.75275,0.00024658,7]
[384854037,1757593852867,-252.75275,0.00024658,7]
[384854038,1757593852878,-252.75275,0.00024658,7]
[384854039,1757593852888,-252.752756,0.00024658,7]
[384854040,1757593852897,-200.0,0.00024658,2]
[384854041,1757593852909,-380.0,0.00024658,2]
[384854042,1757593852924,-274.354663,0.00024658,2]
[384854043,1757593852934,-730.0,0.00024658,2]
[384854044,1757593852944,-556.85380401,0.0002469,10]
[384854045,1757593852953,-199315.24,0.000247,7]
[384854046,1757593852963,-3514.38,0.000247,7]
[384854047,1757593852973,-250.0,0.000247,10]
[384854048,1757593852983,-5091.38256657,0.00024711,2]
[384854049,1757593852992,-260.25615741,0.00024733,2]
[384854050,1757593853003,-1000.0,0.00024749,20]
[384854051,1757593853013,-791.0,0.00024749,20]
[384854052,1757593853023,-16568.17995581,0.00024774,2]
[384854053,1757593853032,-450.0,0.00024788,2]
[384854054,1757593853042,-250.0,0.000248,10]
[384854055,1757593853051,-1275.76091992,0.000249,30]
[384854056,1757593853061,-250.0,0.000249,10]
[384854057,1757593853070,-260.25615741,0.000249,2]
[384854058,1757593853080,-734591.933482,0.000249,2]
[384854059,1757593853089,-730.0,0.00024932,2]
[384854060,1757593853099,-1152.435804,0.0002498,5]
[384854061,1757593853108,-99000.0,0.00025,15]
[384854062,1757593853116,-1039218.88472252,0.00025,7]
[384854063,1757593853126,-1070.15158245,0.00025,2]
[384854064,1757593853135,-2635.67545503,0.00025,2]
[384854065,1757593853144,-208.9512786,0.00025,2]
[384854066,1757593853154,-10364.0,0.00025,2]
[384854067,1757593853167,-360.71584641,0.00025,2]
[384854068,1757593853176,-500.0,0.00025,2]
[384854069,1757593853186,-600.0,0.00025,2]
[384854070,1757593853196,-1014.00780341,0.00025,10]
[384854071,1757593853205,-5002.19456251,0.00025,30]
[384854072,1757593853215,-104950.76893245,0.00025,2]
[384854073,1757593853224,-160.0,0.00025,30]
[384854074,1757593853234,-168.02,0.00025,30]
[384854075,1757593853244,-10583.28703691,0.00025,30]
[384854076,1757593853254,-2609.66964415,0.00025,7]
[384854077,1757593853264,-163.46235558,0.00025,10]
[384854078,1757593853274,-2669.0,0.00025,10]
[384854079,1757593853284,-300.0,0.00025,2]
[384854080,1757593853293,-385787.3489,0.00025,5]
[384854081,1757593853303,-285943.56766799,0.00025,4]
[384854082,1757593853312,-692.82142625,0.00025,30]
[384854083,1757593853322,-41842.0,0.00025,30]
[384854084,1757593853331,-160.0,0.00025,30]
[384854085,1757593853341,-180.0,0.00025,7]
[384854086,1757593853350,-1000.0,0.00025,5]
[384854087,1757593853359,-217.69300629,0.00025,10]
[384854088,1757593853368,-217.69300629,0.00025,30]
[384854089,1757593853379,-160.0,0.00025,10]
[384854090,1757593853388,-160.0,0.00025,30]
[384854091,1757593853397,-160.0,0.00025,10]
[384854092,1757593853408,-160.0,0.00025,30]
[384854093,1757593853421,-250.0,0.00025,10]
[384854094,1757593853431,-160.0,0.00025,10]
[384854095,1757593853440,-233.10680167,0.00025,10]
[384854096,1757593853449,-233.10680167,0.00025,30]
[384854097,1757593853459,-530.95967032,0.00025,10]
[384854098,1757593853468,-530.95967032,0.00025,30]
[384854099,1757593853478,-417.15472785,0.00025,10]
[384854100,1757593853487,-417.15472785,0.00025,30]
[384854101,1757593853500,-7130.01969476,0.00025029,2]
[384854102,1757593853510,-1400.0,0.00025096,2]
[384854103,1757593853519,-1071.099999,0.000251,2]
[384854104,1757593853529,-250.0,0.000251,10]
[384854105,1757593853538,-250.0,0.00025205,2]
[384854106,1757593853547,-730.0,0.00025206,2]
[384854107,1757593853557,-936.66,0.00025319,7]
[384854108,1757593853566,-600.0,0.00025336,2]
[384854109,1757593853575,-5091.38256657,0.00025348,2]
[384854110,1757593853585,-8453.76,0.000254,7]
[384854111,1757593853594,-1100.0,0.00025419,2]
[384854112,1757593853603,-200000.0,0.0002544,2]
[384854113,1757593853613,-1100.0,0.00025443,2]
[384854114,1757593853622,-7130.01969476,0.00025456,3]
[384854115,1757593853631,-500.0,0.00025466,2]
[384854116,1757593853641,-900.0,0.00025469,3]
[384854117,1757593853651,-730.0,0.0002548,2]
[384854118,1757593853660,-1000.0,0.000255,2]
[384854119,1757593853674,-19338.12,0.000255,7]
[384854120,1757593853683,-800.0,0.00025534,2]
[384854121,1757593853693,-800.0,0.00025559,2]
[384854122,1757593853702,-199315.24,0.000256,7]
[384854123,1757593853711,-3514.38,0.000256,7]
[384854124,1757593853721,-500.0,0.00025611,2]
[384854125,1757593853731,-1100.0,0.00025633,2]
[384854126,1757593853741,-500.0,0.00025648,2]
[384854127,1757593853751,-202.0,0.0002566,13]
[384854128,1757593853761,-500.0,0.0002568,2]
[384854129,1757593853771,-800.0,0.00025688,2]
[384854130,1757593853781,-500.0,0.00025704,2]
[384854131,1757593853791,-800.0,0.00025735,2]
[384854132,1757593853800,-350.0,0.00025753,2]
[384854133,1757593853810,-730.0,0.00025754,2]
[384854134,1757593853819,-800.0,0.00025791,2]
[384854135,1757593853829,-500.0,0.00025791,2]
[384854136,1757593853841,-500.0,0.00025799,2]
[384854137,1757593853851,-17808.27839539,0.000258,2]
[384854138,1757593853861,-1100.0,0.00025803,2]
[384854139,1757593853870,-800.0,0.00025855,2]
[384854140,1757593853880,-500.0,0.00025857,2]
[384854141,1757593853890,-188.4352839,0.00025863,2]
[384854142,1757593853899,-188.4352839,0.00025863,2]
[384854143,1757593853909,-188.4352839,0.00025863,2]
[384854144,1757593853922,-500.0,0.00025867,2]
[384854145,1757593853932,-293.85068442,0.00025868,2]
[384854146,1757593853941,-7130.01969476,0.00025884,4]
[384854147,1757593853951,-750.0,0.00025884,2]
[384854148,1757593853960,-916.84165667,0.0002589,30]
[384854149,1757593853970,-190.0,0.00025896,2]
[384854150,1757593853979,-500.0,0.000259,2]
[384854151,1757593853989,-1976.54,0.00025939,7]
[384854152,1757593853998,-500.0,0.00025945,2]
[384854153,1757593854007,-5091.38256657,0.00025986,2]
[384854154,1757593854016,-800.0,0.00025989,2]
[384854155,1757593854025,-32206.15218244,0.00026,7]
[384854156,1757593854036,-522.08072325,0.00026,2]
[384854157,1757593854045,-19900.0,0.00026,2]
[384854158,1757593854054,-38954.39993352,0.00026,10]
[384854159,1757593854063,-160.0,0.00026,3]
[384854160,1757593854074,-1000.0,0.00026,26]
[384854161,1757593854083,-160.0,0.00026,3]
[384854162,1757593854092,-160.0,0.00026,10]
[384854163,1757593854102,-10583.28703691,0.00026,10]
[384854164,1757593854112,-757916.15595007,0.00026,7]
[384854165,1757593854194,-23480.619995,0.00026,7]
[384854166,1757593854206,-424.08220478,0.00026,7]
[384854167,1757593854434,-215.19557088,0.00013698,2]
[384854168,1757593854445,-480.0,0.00013698,2]
[384854169,1757593854457,-480.0,0.00013698,2]
[384854170,1757593854468,-400.28,0.00013698,2]
[384854171,1757593854481,-500.0,0.0001503,2]
[384854172,1757593854492,-1002.57196,0.000225,2]
[384854173,1757593854502,-1000.0,0.00023,2]
[384854174,1757593854513,-1000.0,0.000235,2]
[384854175,1757593854523,-841.77428703,0.00024,2]
[384854176,1757593854536,-158.22571297,0.00024,2]
[384854177,1757593854547,-204.518942,0.00025,2]
[384854178,1757593854558,-3105.29602663,0.00026,7]
[384854179,1757593854571,-17691.96165883,0.00026,7]
[384854180,1757593854593,-680.90757339,0.00026,7]
[384854181,1757593854606,-24284.18641843,0.00026,7]
[384854182,1757593854620,-4120.04839328,0.00026,7]
[384854184,1757593875919,1300.0,0.00027,120]
[384854186,1757593973393,500.0,0.00025,120]
[384854187,1757593974139,186.62,0.00025,120]
[384854188,1757593995542,2500.0,0.00027,120]
[384854189,1757594011637,186.441142,0.00027397,120]
[384854192,1757594214943,206.67467203,0.000145,9]
[384854193,1757594262655,169.33814378,0.00013558,2]
[384854199,1757594768119,169.33814378,0.00013558,2]
[384854200,1757594793926,169.33814378,0.00013558,2]
[384854201,1757594819073,162.44959389,0.00013558,2]
[384854202,1757594822581,222.53950668,0.00013286,2]
[384854203,1757594843410,169.33814378,0.00013558,2]
[384854204,1757594868008,169.33814378,0.00013558,2]
[384854206,1757594894057,169.33814378,0.00013558,2]
[384854207,1757594919703,338.67628756,0.00013558,2]
[384854208,1757594936504,500.0,0.00027397,120]
[384854209,1757594944216,169.33814378,0.00013558,2]
[384854210,1757594946005,186.441142,0.00027397,120]
[384854216,1757594979125,213.0,0.00027397,120]
[384854218,1757595008930,169.33814378,0.000145,9]
[384854286,1757595034494,169.33814378,0.00013558,2]
[384854299,1757595036265,-1200.0,0.00013695,2]
[384854302,1757595036275,-300.0,0.00013696,2]
[384854304,1757595036284,-300.0,0.00013696,2]
[384854306,1757595036293,-300.0,0.00013696,2]
[384854308,1757595036302,-300.0,0.00013696,2]
[384854309,1757595036311,-1200.0,0.00013696,2]
[384854311,1757595036320,-8920.80706182,0.00013697,2]
[384854314,1757595036331,-16905.07140893,0.00013697,2]
[384854316,1757595036342,-544.32532797,0.00013697,2]
[384854318,1757595036353,-11527.81905574,0.00013697,2]
[384854320,1757595036362,-367.86056734,0.00013697,2]
[384854322,1757595036372,-193.66741853,0.00013697,2]
[384854324,1757595036381,-500.0,0.00013697,2]
[384854326,1757595036390,-500.0,0.00013697,2]
[384854328,1757595036399,-235.67203786,0.00013697,2]
[384854330,1757595036408,-500.0,0.00013697,2]
[384854332,1757595036418,-302.16457736,0.00013697,2]
[384854334,1757595036427,-500.0,0.00013697,2]
[384854336,1757595036436,-500.0,0.00013697,2]
[384854340,1757595036445,-500.0,0.00013697,2]
[384854344,1757595036455,-500.0,0.00013697,2]
[384854348,1757595036464,-500.0,0.00013697,2]
[384854352,1757595036473,-500.0,0.00013697,2]
[384854355,1757595036482,-574.71989679,0.00013697,2]
[384854358,1757595036491,-334.22091201,0.00013697,2]
[384854374,1757595036633,-500.0,0.00013697,2]
[384854376,1757595036643,-500.0,0.00013697,2]
[384854378,1757595036652,-411.17191965,0.00013697,2]
[384854380,1757595036663,-500.0,0.00013697,2]
[384854382,1757595036672,-500.0,0.00013697,2]
[384854384,1757595036686,-394.42801167,0.00013697,2]
[384854386,1757595036695,-480.0,0.00013698,2]
[384854388,1757595036704,-509.74625437,0.00013698,2]
[384854390,1757595036714,-480.0,0.00013698,2]
[384854392,1757595036725,-480.0,0.00013698,2]
[384854394,1757595036734,-480.0,0.00013698,2]
[384854396,1757595036743,-480.0,0.00013698,2]
[384854398,1757595036752,-486.72664108,0.00013698,2]
[384854400,1757595036762,-480.0,0.00013698,2]
[384854402,1757595036773,-480.0,0.00013698,2]
[384854404,1757595036782,-480.0,0.00013698,2]
[384854405,1757595036790,-480.0,0.00013698,2]
[384854407,1757595036800,-485.80040873,0.00013698,2]
[384854409,1757595036809,-480.0,0.00013698,2]
[384854412,1757595036819,-480.0,0.00013698,2]
[384854413,1757595036829,-480.0,0.00013698,2]
[384854415,1757595036839,-480.0,0.00013698,2]
[384854417,1757595036848,-480.0,0.00013698,2]
[384854419,1757595036857,-480.0,0.00013698,2]
[384854421,1757595036866,-480.0,0.00013698,2]
[384854423,1757595036875,-480.0,0.00013698,2]
[384854425,1757595036884,-483.31129139,0.00013698,2]
[384854427,1757595036893,-480.0,0.00013698,2]
[384854429,1757595036903,-480.0,0.00013698,2]
[384854431,1757595036913,-480.0,0.00013698,2]
[384854433,1757595036922,-480.0,0.00013698,2]
[384854435,1757595036931,-480.0,0.00013698,2]
[384854437,1757595036940,-480.0,0.00013698,2]
[384854439,1757595036950,-480.0,0.00013698,2]
[384854441,1757595036959,-480.0,0.00013698,2]
[384854443,1757595036969,-481.19921792,0.00013698,2]
[384854445,1757595036979,-480.0,0.00013698,2]
[384854447,1757595036988,-480.0,0.00013698,2]
[384854449,1757595036997,-480.0,0.00013698,2]
[384854451,1757595037008,-480.0,0.00013698,2]
[384854454,1757595037018,-480.0,0.00013698,2]
[384854456,1757595037027,-596.67933791,0.00013698,2]
[384854458,1757595037037,-480.0,0.00013698,2]
[384854460,1757595037047,-480.0,0.00013698,2]
[384854462,1757595037056,-480.0,0.00013698,2]
[384854464,1757595037065,-480.0,0.00013698,2]
[384854466,1757595037074,-480.0,0.00013698,2]
[384854467,1757595037083,-480.0,0.00013698,2]
[384854469,1757595037092,-480.0,0.00013698,2]
[384854471,1757595037101,-480.0,0.00013698,2]
[384854473,1757595037110,-480.0,0.00013698,2]
[384854475,1757595037120,-480.0,0.00013698,2]
[384854477,1757595037129,-480.0,0.00013698,2]
[384854479,1757595037138,-11.89402871,0.00013698,2]
[384854482,1757595037156,-468.10597129,0.00013698,2]
[384854484,1757595037166,-480.0,0.00013698,2]
[384854486,1757595037175,-51.89402871,0.00013698,2]
[384854546,1757595037671,-428.10597129,0.00013698,2]
[384854548,1757595037682,-480.0,0.00013698,2]
[384854550,1757595037691,-480.0,0.00013698,2]
[384854552,1757595037700,-480.0,0.00013698,2]
[384854554,1757595037709,-480.0,0.00013698,2]
[384854556,1757595037718,-480.0,0.00013698,2]
[384854558,1757595037728,-480.0,0.00013698,2]
[384854559,1757595037737,-69.22570155,0.00013698,2]
[384854562,1757595037749,-410.77429845,0.00013698,2]
[384854564,1757595037760,-400.0,0.00013698,2]
[384854566,1757595037769,-289.41986477,0.00013698,2]
[384854568,1757595037778,-480.0,0.00013698,2]
[384854570,1757595037786,-151.73784694,0.00013698,2]
[384854572,1757595037795,-273.48285467,0.00013698,2]
[384854574,1757595037806,-213.7077026,0.00013698,2]
[384854576,1757595037815,-480.0,0.00013698,2]
[384854578,1757595037825,-480.0,0.00013698,2]
[384854580,1757595037834,-515.05030051,0.00013698,2]
[384854582,1757595037843,-400.78147617,0.00013698,2]
[384854584,1757595037852,-480.0,0.00013698,2]
[384854586,1757595037862,-43.14364307,0.00013698,2]
[384854588,1757595037873,-436.85635693,0.00013698,2]
[384854590,1757595037882,-480.0,0.00013698,2]
[384854592,1757595037891,-500.0,0.00013698,2]
[384854594,1757595037901,-316.96453978,0.00013698,2]
[384854596,1757595037910,-480.0,0.00013698,2]
[384854598,1757595037920,-480.0,0.00013698,2]
[384854600,1757595037928,-480.0,0.00013698,2]
[384854602,1757595037938,-398.05,0.00013698,2]
[384854604,1757595037947,-480.0,0.00013698,2]
[384854606,1757595037956,-480.0,0.00013698,2]
[384854608,1757595037965,-480.0,0.00013698,2]
[384854610,1757595037974,-480.0,0.00013698,2]
[384854611,1757595037983,-480.0,0.00013698,2]
[384854612,1757595037992,-485.9066395,0.00013698,2]
[384854613,1757595038002,-480.0,0.00013698,2]
[384854614,1757595038011,-487.66748101,0.00013698,2]
[384854615,1757595038019,-480.0,0.00013698,2]
[384854616,1757595038028,-480.0,0.00013698,2]
[384854617,1757595038038,-480.0,0.00013698,2]
[384854618,1757595038048,-480.0,0.00013698,2]
[384854619,1757595038057,-480.0,0.00013698,2]
[384854620,1757595038066,-480.0,0.00013698,2]
[384854621,1757595038075,-480.0,0.00013698,2]
[384854622,1757595038084,-480.0,0.00013698,2]
[384854623,1757595038093,-480.0,0.00013698,2]
[384854624,1757595038102,-480.0,0.00013698,2]
[384854625,1757595038111,-480.0,0.00013698,2]
[384854626,1757595038120,-480.0,0.00013698,2]
[384854627,1757595038129,-480.0,0.00013698,2]
[384854628,1757595038140,-176.63,0.00013698,2]
[384854629,1757595038149,-480.0,0.00013698,2]
[384854630,1757595038159,-480.0,0.00013698,2]
[384854631,1757595038168,-480.0,0.00013698,2]
[384854632,1757595038178,-483.24766933,0.00013698,2]
[384854633,1757595038188,-37.64652171,0.00013698,2]
[384854634,1757595038200,-442.35347829,0.00013698,2]
[384854635,1757595038209,-480.0,0.00013698,2]
[384854636,1757595038219,-480.0,0.00013698,2]
[384854637,1757595038228,-480.0,0.00013698,2]
[384854639,1757595038238,-480.0,0.00013698,2]
[384854641,1757595038248,-480.0,0.00013698,2]
[384854643,1757595038257,-480.0,0.00013698,2]
[384854645,1757595038266,-480.0,0.00013698,2]
[384854647,1757595038275,-480.0,0.00013698,2]
[384854649,1757595038284,-480.0,0.00013698,2]
[384854651,1757595038294,-480.0,0.00013698,2]
[384854653,1757595038303,-480.0,0.00013698,2]
[384854655,1757595038313,-480.0,0.00013698,2]
[384854657,1757595038323,-480.0,0.00013698,2]
[384854659,1757595038332,-484.0484773,0.00013698,2]
[384854660,1757595038342,-480.0,0.00013698,2]
[384854662,1757595038351,-480.0,0.00013698,2]
[384854664,1757595038359,-225.52713042,0.00013698,2]
[384854822,1757595039812,-254.47286958,0.00013698,2]
[384854824,1757595039822,-627.62659272,0.00013698,2]
[384854826,1757595039831,-480.0,0.00013698,2]
[384854828,1757595039840,-497.99,0.00013698,2]
[384854830,1757595039849,-480.0,0.00013698,2]
[384854831,1757595039859,-480.0,0.00013698,2]
[384854832,1757595039868,-480.0,0.00013698,2]
[384854833,1757595039877,-480.0,0.00013698,2]
[384854835,1757595039887,-480.0,0.00013698,2]
[384854837,1757595039897,-480.0,0.00013698,2]
[384854839,1757595039906,-480.0,0.00013698,2]
[384854841,1757595039916,-480.0,0.00013698,2]
[384854843,1757595039926,-480.0,0.00013698,2]
[384854846,1757595039937,-480.0,0.00013698,2]
[384854848,1757595039946,-480.0,0.00013698,2]
[384854850,1757595039956,-480.0,0.00013698,2]
[384854851,1757595039965,-480.0,0.00013698,2]
[384854852,1757595039975,-415.94817367,0.00013698,2]
[384854853,1757595039984,-480.0,0.00013698,2]
[384854854,1757595039994,-480.0,0.00013698,2]
[384854855,1757595040003,-480.0,0.00013698,2]
[384854856,1757595040012,-480.0,0.00013698,2]
[384854857,1757595040022,-480.0,0.00013698,2]
[384854858,1757595040031,-480.0,0.00013698,2]
[384854859,1757595040040,-57.72807331,0.00013698,2]
[384854861,1757595040052,-422.27192669,0.00013698,2]
[384854863,1757595040061,-421.36397815,0.00013698,2]
[384854864,1757595040073,-58.63602185,0.00013698,2]
[384854865,1757595040082,-480.0,0.00013698,2]
[384854866,1757595040092,-480.0,0.00013698,2]
[384854867,1757595040101,-480.0,0.00013698,2]
[384854868,1757595040111,-486.94268742,0.00013698,2]
[384854869,1757595040121,-480.0,0.00013698,2]
[384854870,1757595040130,-480.0,0.00013698,2]
[384854871,1757595040140,-480.0,0.00013698,2]
[384854872,1757595040149,-480.0,0.00013698,2]
[384854873,1757595040158,-480.0,0.00013698,2]
[384854874,1757595040168,-480.0,0.00013698,2]
[384854875,1757595040177,-410.15168586,0.00013698,2]
[384854876,1757595040186,-480.0,0.00013698,2]
[384854877,1757595040196,-480.0,0.00013698,2]
[384854878,1757595040205,-480.0,0.00013698,2]
[384854879,1757595040215,-480.0,0.00013698,2]
[384854880,1757595040225,-480.0,0.00013698,2]
[384854881,1757595040234,-480.0,0.00013698,2]
[384854882,1757595040244,-480.0,0.00013698,2]
[384854883,1757595040253,-480.0,0.00013698,2]
[384854884,1757595040263,-475.82249854,0.00013698,2]
[384854885,1757595040286,-4.17750146,0.00013698,2]
[384854886,1757595040296,-480.0,0.00013698,2]
[384854887,1757595040306,-480.0,0.00013698,2]
[384854888,1757595040315,-480.0,0.00013698,2]
[384854889,1757595040324,-480.0,0.00013698,2]
[384854890,1757595040334,-480.0,0.00013698,2]
[384854891,1757595040343,-480.0,0.00013698,2]
[384854892,1757595040352,-480.0,0.00013698,2]
[384854893,1757595040362,-480.0,0.00013698,2]
[384854894,1757595040371,-480.0,0.00013698,2]
[384854895,1757595040380,-480.0,0.00013698,2]
[384854896,1757595040392,-480.0,0.00013698,2]
[384854897,1757595040402,-480.0,0.00013698,2]
[384854898,1757595040412,-480.0,0.00013698,2]
[384854899,1757595040422,-480.0,0.00013698,2]
[384854900,1757595040431,-480.0,0.00013698,2]
[384854901,1757595040440,-480.0,0.00013698,2]
[384854902,1757595040449,-480.0,0.00013698,2]
[384854903,1757595040459,-480.0,0.00013698,2]
[384854904,1757595040468,-480.0,0.00013698,2]
[384854905,1757595040477,-480.0,0.00013698,2]
[384854906,1757595040487,-480.0,0.00013698,2]
[384854907,1757595040496,-480.0,0.00013698,2]
[384854908,1757595040505,-480.0,0.00013698,2]
[384854909,1757595040515,-480.0,0.00013698,2]
[384854910,1757595040524,-480.0,0.00013698,2]
[384854911,1757595040534,-480.0,0.00013698,2]
[384854912,1757595040543,-480.0,0.00013698,2]
[384854913,1757595040553,-480.0,0.00013698,2]
[384854914,1757595040562,-480.0,0.00013698,2]
[384854915,1757595040571,-480.0,0.00013698,2]
[384854916,1757595040581,-480.0,0.00013698,2]
[384854918,1757595040590,-480.0,0.00013698,2]
[384854920,1757595040599,-480.0,0.00013698,2]
[384854922,1757595040610,-480.0,0.00013698,2]
[384854924,1757595040619,-480.0,0.00013698,2]
[384854925,1757595040628,-480.0,0.00013698,2]
[384854926,1757595040638,-480.0,0.00013698,2]
[384854927,1757595040647,-480.0,0.00013698,2]
[384854928,1757595040656,-480.0,0.00013698,2]
[384854929,1757595040665,-480.0,0.00013698,2]
[384854930,1757595040675,-480.0,0.00013698,2]
[384854931,1757595040689,-480.0,0.00013698,2]
[384854932,1757595040698,-480.0,0.00013698,2]
[384854934,1757595040707,-416.8045623,0.00013698,2]
[384854936,1757595040716,-483.74815941,0.00013698,2]
[384854938,1757595040726,-480.0,0.00013698,2]
[384854939,1757595040735,-480.0,0.00013698,2]
[384854940,1757595040745,-480.0,0.00013698,2]
[384854941,1757595040755,-480.0,0.00013698,2]
[384854942,1757595040765,-480.0,0.00013698,2]
[384854943,1757595040774,-480.0,0.00013698,2]
[384854944,1757595040784,-484.1875951,0.00013698,2]
[384854945,1757595040793,-480.0,0.00013698,2]
[384854946,1757595040807,-480.0,0.00013698,2]
[384854947,1757595040816,-480.0,0.00013698,2]
[384854948,1757595040825,-480.0,0.00013698,2]
[384854949,1757595040835,-489.95616679,0.00013698,2]
[384854950,1757595040845,-480.0,0.00013698,2]